bitfinex/quotes_BTCUSD_20230109
["timestamp","ask_amount","ask_price","bid_price","bid_amount"]
[1673229237742,1.58532478,17206.0,17205.0,0.00810001]
[1673229238003,2.17248171,17206.0,17205.0,0.00810001]
[1673229238273,2.17248171,17206.0,17202.0,0.00421578]
[1673229238274,0.00224426,17204.0,17202.0,0.00421578]
[1673229238547,0.581293,17203.0,17202.0,0.00421578]
[1673229238801,1.62894333,17203.0,17202.0,0.00421578]
[1673229239051,1.15659687,17203.0,17202.0,0.00421578]
[1673229239831,0.88040273,17203.0,17202.0,0.00421578]
[1673229240144,0.53234171,17203.0,17202.0,0.00421578]
[1673229240603,0.66834171,17203.0,17202.0,0.00421578]
[1673229240852,0.53234171,17203.0,17202.0,0.00421578]
[1673229241102,0.70630913,17203.0,17202.0,0.00421578]
[1673229241436,1.25821189,17203.0,17202.0,0.00421578]
[1673229241627,0.57529671,17203.0,17202.0,0.00421578]
[1673229241877,0.71029671,17203.0,17202.0,0.00421578]
[1673229242387,1.15658971,17203.0,17202.0,0.00421578]
[1673229242648,1.29158971,17203.0,17202.0,0.00421578]
[1673229243397,0.84124581,17203.0,17202.0,0.00421578]
[1673229243649,0.44332858,17203.0,17202.0,0.00421578]
[1673229244006,0.53229858,17203.0,17202.0,0.00421578]
[1673229245462,0.84124581,17203.0,17202.0,0.00421578]
[1673229245743,0.88036205,17203.0,17202.0,0.00421578]
[1673229246250,0.92316123,17203.0,17202.0,0.00421578]
[1673229246540,0.70621308,17203.0,17202.0,0.00421578]
[1673229246796,1.05816122,17203.0,17202.0,0.00421578]
[1673229247047,0.92316122,17203.0,17202.0,0.00421578]
[1673229247298,0.71028672,17203.0,17202.0,0.00421578]
[1673229247559,1.59157972,17203.0,17202.0,0.00421578]
[1673229248371,1.63930862,17203.0,17202.0,0.00421578]
[1673229248623,1.59650945,17203.0,17202.0,0.00421578]
[1673229248881,1.42228365,17203.0,17202.0,0.00421578]
[1673229249133,1.59650945,17203.0,17202.0,0.00421578]
[1673229249392,1.63929696,17203.0,17202.0,0.00421578]
[1673229249652,1.63926703,17203.0,17202.0,0.00421578]
[1673229249904,2.49998297,17203.0,17202.0,0.00421578]
[1673229250438,2.93455795,17203.0,17202.0,0.00421578]
[1673229250676,2.49998297,17203.0,17202.0,0.00421578]
[1673229250933,2.93455682,17203.0,17202.0,0.00421578]
[1673229251443,2.80135973,17203.0,17202.0,0.00421578]
[1673229251803,2.75857222,17203.0,17202.0,0.00421578]
[1673229251940,2.58468279,17203.0,17202.0,0.00421578]
[1673229252188,2.75857222,17203.0,17202.0,0.00421578]
[1673229252440,2.80134114,17203.0,17202.0,0.00421578]
[1673229252708,2.75857222,17203.0,17202.0,0.00421578]
[1673229253231,3.01925586,17203.0,17202.0,0.00421578]
[1673229253492,2.58468201,17203.0,17202.0,0.00421578]
[1673229254007,2.75857222,17203.0,17202.0,0.00421578]
[1673229254296,2.58463871,17203.0,17202.0,0.00421578]
[1673229254756,2.93453211,17203.0,17202.0,0.00421578]
[1673229255013,3.04733211,17203.0,17202.0,0.00421578]
[1673229255536,2.61275826,17203.0,17202.0,0.00421578]
[1673229256017,3.04712789,17203.0,17202.0,0.00421578]
[1673229256261,3.04712848,17203.0,17202.0,0.00421578]
[1673229257022,3.04712695,17203.0,17202.0,0.00421578]
[1673229257541,2.61275826,17203.0,17202.0,0.00421578]
[1673229258075,3.13479714,17203.0,17202.0,0.00379421]
[1673229262304,3.13432515,17203.0,17202.0,0.00379421]
[1673229262824,2.65347869,17203.0,17202.0,0.00379421]
[1673229263113,2.1319118,17203.0,17202.0,0.00379421]
[1673229263357,2.56651246,17203.0,17202.0,0.00379421]
[1673229263616,1.63029387,17203.0,17202.0,0.2414721]
[1673229263873,1.63031363,17203.0,17202.0,0.00379421]
[1673229265168,2.16393922,17203.0,17202.0,0.00379421]
[1673229265420,1.72933856,17203.0,17202.0,0.00379421]
[1673229265680,1.73783856,17203.0,17202.0,0.00379421]
[1673229265929,1.43783856,17203.0,17202.0,0.00379421]
[1673229266183,1.05792577,17203.0,17202.0,0.00379421]
[1673229267146,0.8411998,17203.0,17202.0,0.00379421]
[1673229267337,1.01514321,17203.0,17202.0,0.00379421]
[1673229267602,1.05794889,17203.0,17202.0,0.00379421]
[1673229267872,1.0580185,17203.0,17202.0,0.00379421]
[1673229268121,0.75235348,17203.0,17202.0,0.00379421]
[1673229268894,1.33364648,17203.0,17202.0,0.00379421]
[1673229269152,0.56988376,17203.0,17202.0,0.13905421]
[1673229269400,0.30894914,17203.0,17202.0,0.13905421]
[1673229269674,0.30894914,17203.0,17202.0,0.72038121]
[1673229269927,0.30894914,17203.0,17202.0,2.04784471]
[1673229269928,0.135,17203.0,17202.0,2.04784471]
[1673229270178,0.135,17203.0,17202.0,2.33852171]
[1673229270981,0.00224426,17204.0,17203.0,0.3]
[1673229271203,0.1761934,17204.0,17203.0,0.777613]
[1673229271461,0.1761934,17204.0,17203.0,0.4128]
[1673229271744,0.43712802,17204.0,17203.0,0.4128]
[1673229272276,0.44920063,17204.0,17203.0,0.4258]
[1673229272525,0.18826601,17204.0,17203.0,1.007093]
[1673229273037,0.18826601,17204.0,17203.0,1.588386]
[1673229273603,0.01424426,17204.0,17203.0,1.588386]
[1673229274368,0.18826601,17204.0,17203.0,1.007093]
[1673229275092,0.18826601,17204.0,17203.0,0.013]
[1673229275093,0.27517888,17204.0,17203.0,0.013]
[1673229275094,0.62309774,17204.0,17203.0,0.013]
[1673229275353,0.84830955,17204.0,17203.0,0.013]
[1673229275611,0.84856789,17204.0,17203.0,0.013]
[1673229276612,0.84856789,17204.0,17203.0,0.01428948]
[1673229276861,0.84856789,17204.0,17203.0,0.013]
[1673229277116,0.50039069,17204.0,17203.0,0.013]
[1673229277366,1.08165069,17204.0,17203.0,0.013]
[1673229278127,1.08204162,17204.0,17203.0,0.013]
[1673229278409,1.0820421,17204.0,17203.0,0.013]
[1673229278630,1.0820421,17204.0,17203.0,0.01435377]
[1673229278884,0.49853784,17204.0,17203.0,0.01435377]
[1673229279132,0.84670113,17204.0,17203.0,0.01424779]
[1673229279398,0.45568132,17204.0,17203.0,0.01424779]
[1673229279938,0.19457021,17204.0,17203.0,1.07315379]
[1673229280418,0.0205,17204.0,17203.0,1.07315379]
[1673229280912,0.012,17204.0,17203.0,1.65444679]
[1673229281899,0.012,17204.0,17203.0,1.95444679]
[1673229285272,0.012,17204.0,17203.0,2.53573979]
[1673229285537,0.01139821,17204.0,17203.0,2.53438602]
[1673229285802,0.01139821,17204.0,17203.0,1.84029302]
[1673229286075,0.01139821,17204.0,17203.0,1.47548002]
[1673229286585,0.01139821,17204.0,17203.0,1.47554771]
[1673229286843,0.01139821,17204.0,17203.0,0.59425471]
[1673229287096,0.44657953,17204.0,17203.0,0.01289402]
[1673229288104,0.45507953,17204.0,17203.0,0.01289402]
[1673229288414,0.19396842,17204.0,17203.0,0.01289402]
[1673229289203,0.45507953,17204.0,17203.0,0.01289402]
[1673229289709,0.45507953,17204.0,17203.0,0.01431797]
[1673229289972,0.19396842,17204.0,17203.0,0.01289402]
[1673229290723,0.01989821,17204.0,17203.0,0.01289402]
[1673229291207,0.19396842,17204.0,17203.0,0.01289402]
[1673229291940,0.19373333,17204.0,17203.0,0.01289402]
[1673229292197,0.62893752,17204.0,17203.0,0.01289402]
[1673229292421,1.21019752,17204.0,17203.0,0.01289402]
[1673229292947,1.29916752,17204.0,17203.0,0.01289402]
[1673229293697,1.73438289,17204.0,17203.0,0.01289402]
[1673229293951,0.62893752,17204.0,17203.0,0.01289402]
[1673229294205,0.45466794,17204.0,17203.0,0.01289402]
[1673229295493,0.89180246,17204.0,17203.0,0.01289402]
[1673229295745,0.71790752,17204.0,17203.0,0.01289402]
[1673229296004,0.45468363,17204.0,17203.0,0.01289402]
[1673229296286,0.45468363,17204.0,17203.0,0.59418702]
[1673229296287,0.18507252,17204.0,17203.0,0.59418702]
[1673229296541,0.18507252,17204.0,17203.0,0.01289402]
[1673229296782,0.44618363,17204.0,17203.0,0.01289402]
[1673229297036,0.18507252,17204.0,17203.0,0.01289402]
[1673229297548,0.01116312,17204.0,17203.0,0.01289402]
[1673229297794,0.01116312,17204.0,17203.0,0.67778142]
[1673229298298,0.02774494,17204.0,17203.0,0.67778142]
[1673229298549,0.02774494,17204.0,17203.0,0.31296842]
[1673229299330,0.20165434,17204.0,17203.0,0.89426142]
[1673229300588,0.02774494,17204.0,17203.0,1.84036742]
[1673229300837,0.02774494,17204.0,17203.0,1.84029302]
[1673229301092,0.20165434,17204.0,17203.0,1.84029302]
[1673229301380,0.02774494,17204.0,17203.0,1.84171059]
[1673229301604,0.20165434,17204.0,17203.0,1.84171059]
[1673229301868,0.19679634,17204.0,17203.0,1.84171059]
[1673229302117,0.19679634,17204.0,17203.0,1.84029302]
[1673229302372,0.19679634,17204.0,17203.0,1.84171059]
[1673229302626,0.02288694,17204.0,17203.0,1.84171059]
[1673229304642,0.02288694,17204.0,17203.0,1.8403639]
[1673229305657,0.19679634,17204.0,17203.0,1.8403639]
[1673229306634,0.02288694,17204.0,17203.0,2.4216569]
[1673229307152,0.19679634,17204.0,17203.0,2.4216569]
[1673229307411,0.19679634,17204.0,17203.0,2.42158602]
[1673229307668,0.63216134,17204.0,17203.0,0.01289402]
[1673229307926,0.50946567,17204.0,17203.0,0.01289402]
[1673229311198,0.81505528,17204.0,17203.0,0.01289402]
[1673229311453,0.85791864,17204.0,17203.0,0.01289402]
[1673229311955,0.85791864,17204.0,17203.0,0.01309955]
[1673229312216,1.07638148,17204.0,17203.0,0.01309955]
[1673229312473,0.64116611,17204.0,17203.0,0.01309955]
[1673229312752,0.64116611,17204.0,17203.0,0.31309955]
[1673229313081,0.46693279,17204.0,17203.0,0.31309955]
[1673229313501,0.46693279,17204.0,17203.0,0.67770702]
[1673229313754,0.20560659,17204.0,17203.0,0.67770702]
[1673229314278,0.20560659,17204.0,17203.0,1.84029302]
[1673229314548,0.02288694,17204.0,17203.0,1.95309302]
[1673229315053,0.02288694,17204.0,17203.0,2.43393948]
[1673229315307,0.02288694,17204.0,17203.0,3.01523248]
[1673229315800,0.43554585,17207.0,17204.0,0.3]
[1673229316046,0.43554585,17207.0,17206.0,0.5256]
[1673229316296,0.43554585,17207.0,17206.0,1.827197]
[1673229317066,0.43554585,17207.0,17206.0,1.527197]
[1673229317330,0.61277917,17207.0,17206.0,1.202384]
[1673229317592,0.4780692,17207.0,17206.0,0.581252]
[1673229317841,0.4850692,17207.0,17206.0,0.683252]
[1673229318862,0.833358,17207.0,17206.0,0.683252]
[1673229319138,0.83335982,17207.0,17206.0,0.683252]
[1673229319382,1.05171793,17207.0,17206.0,1.264444]
[1673229319633,0.61650256,17207.0,17206.0,1.264444]
[1673229319884,0.79050417,17207.0,17206.0,0.683252]
[1673229320136,0.83335741,17207.0,17206.0,0.683252]
[1673229320607,0.79050417,17207.0,17206.0,0.683252]
[1673229321141,0.61647262,17207.0,17206.0,0.983252]
[1673229321668,0.44230261,17207.0,17206.0,0.983252]
[1673229321910,0.61647262,17207.0,17206.0,0.683252]
[1673229322449,0.61647262,17207.0,17206.0,0.983252]
[1673229323451,0.61647262,17207.0,17206.0,0.683192]
[1673229323745,0.79050417,17207.0,17206.0,0.683192]
[1673229324012,0.84184943,17207.0,17206.0,0.102]
[1673229324297,0.49356063,17207.0,17206.0,0.102]
[1673229325362,0.84176698,17207.0,17206.0,0.102]
[1673229325580,0.79892172,17207.0,17206.0,0.102]
[1673229325798,0.62485267,17207.0,17206.0,0.92086989]
[1673229326019,0.007,17207.0,17206.0,2.44806689]
[1673229326255,0.007,17207.0,17206.0,2.64791482]
[1673229326473,0.007,17207.0,17206.0,3.16408482]
[1673229326923,0.007,17207.0,17206.0,3.19493751]
[1673229327182,0.01216834,17209.0,17206.0,3.19493751]
[1673229327440,0.01216834,17209.0,17207.0,1.1296917]
[1673229327699,0.01216834,17209.0,17208.0,1.527063]
[1673229327951,0.18624952,17209.0,17208.0,1.527063]
[1673229328214,0.18624952,17209.0,17208.0,1.16225]
[1673229328730,0.44739584,17209.0,17208.0,1.16225]
[1673229329246,0.45039584,17209.0,17208.0,1.20925]
[1673229329531,0.45039584,17209.0,17208.0,1.19925]
[1673229329785,0.18924952,17209.0,17208.0,1.19925]
[1673229330287,0.01516834,17209.0,17208.0,1.19925]
[1673229331098,0.01516834,17209.0,17208.0,1.5646937]
[1673229331295,0.01516834,17209.0,17208.0,1.9774937]
[1673229331787,0.01516834,17209.0,17208.0,1.864063]
[1673229332044,0.01516834,17209.0,17208.0,1.8646937]
[1673229332291,0.01516834,17209.0,17208.0,1.4998807]
[1673229334811,0.01516834,17209.0,17208.0,1.1998807]
[1673229337131,0.01516834,17209.0,17208.0,1.1898807]
[1673229337638,0.01516834,17209.0,17208.0,1.18953948]
[1673229337893,0.01516834,17209.0,17208.0,1.18925]
[1673229338672,0.01516834,17209.0,17208.0,1.18986363]
[1673229339414,0.01516834,17209.0,17208.0,1.55467663]
[1673229339717,0.01516834,17209.0,17208.0,1.85467663]
[1673229340711,0.01516834,17209.0,17208.0,2.43580163]
[1673229342779,0.01516834,17209.0,17208.0,3.43259809]
[1673229343934,0.01516834,17209.0,17208.0,3.73259809]
[1673229344346,0.01516834,17209.0,17208.0,3.43259809]
[1673229345412,0.01516834,17209.0,17208.0,2.95175163]
[1673229353270,0.01516834,17209.0,17208.0,1.18925]
[1673229353527,0.01516834,17209.0,17208.0,0.047]
[1673229353789,0.18924952,17209.0,17208.0,0.047]
[1673229354069,0.45039584,17209.0,17208.0,0.047]
[1673229354335,0.63302101,17209.0,17208.0,0.047]
[1673229354858,0.72199101,17209.0,17208.0,0.047]
[1673229355489,0.63302101,17209.0,17208.0,0.047]
[1673229356001,0.45870363,17209.0,17208.0,0.047]
[1673229356816,0.72199101,17209.0,17208.0,0.047]
[1673229357069,1.86563379,17209.0,17208.0,0.047]
[1673229358105,2.16519646,17209.0,17208.0,0.047]
[1673229358369,2.16524275,17209.0,17208.0,0.047]
[1673229358887,2.31150942,17209.0,17208.0,0.047]
[1673229359163,1.73041842,17209.0,17208.0,0.047]
[1673229359625,1.86523887,17209.0,17208.0,0.047]
[1673229359899,2.21308757,17209.0,17208.0,0.047]
[1673229360157,1.94023887,17209.0,17208.0,0.009]
[1673229360403,1.94023887,17209.0,17205.0,0.88220182]
[1673229360661,0.17395156,17207.0,17205.0,0.88220182]
[1673229360923,0.17395156,17207.0,17205.0,0.88211039]
[1673229361177,0.0085,17206.0,17205.0,0.88211039]
[1673229361439,0.0085,17206.0,17205.0,0.87880439]
[1673229361701,0.0085,17206.0,17205.0,0.88680439]
[1673229361951,0.0085,17206.0,17205.0,0.87880439]
[1673229362722,0.0085,17206.0,17205.0,1.46003039]
[1673229362949,0.027,17206.0,17205.0,1.82684339]
[1673229363293,0.0355,17206.0,17205.0,1.82684339]
[1673229363481,0.0085,17206.0,17205.0,1.82484339]
[1673229363732,0.0085,17206.0,17205.0,1.86984339]
[1673229363733,0.003,17206.0,17205.0,1.86984339]
[1673229364254,0.003,17206.0,17205.0,0.626226]
[1673229364530,0.17695156,17206.0,17205.0,0.626226]
[1673229364764,0.4378789,17206.0,17205.0,0.626226]
[1673229365024,0.17695156,17206.0,17205.0,0.626226]
[1673229365293,0.4378789,17206.0,17205.0,0.626226]
[1673229366053,0.4378789,17206.0,17205.0,0.04506]
[1673229366592,0.17695156,17206.0,17205.0,0.04506]
[1673229368119,0.003,17206.0,17205.0,0.626286]
[1673229368626,0.003,17206.0,17205.0,1.207512]
[1673229368881,0.003,17206.0,17205.0,1.507512]
[1673229370491,0.003,17206.0,17205.0,2.453551]
[1673229370745,0.003,17206.0,17205.0,2.93439746]
[1673229371020,0.003,17206.0,17205.0,3.04679746]
[1673229372049,0.003,17206.0,17205.0,3.04673746]
[1673229373309,0.003,17206.0,17205.0,2.565891]
[1673229373807,0.003,17206.0,17205.0,2.56650476]
[1673229375068,0.003,17206.0,17205.0,3.04735122]
[1673229375798,0.003,17206.0,17205.0,2.56650476]
[1673229378860,0.003,17206.0,17205.0,3.04735122]
[1673229379105,0.003,17206.0,17205.0,2.56650476]
[1673229379597,0.003,17206.0,17205.0,3.04735122]
[1673229381387,0.01216834,17209.0,17206.0,0.3]
[1673229381635,0.01216834,17209.0,17207.0,2.398857]
[1673229381879,0.01216834,17209.0,17208.0,0.3]
[1673229382127,0.02066834,17209.0,17208.0,1.46225]
[1673229382638,0.09666834,17209.0,17208.0,1.46225]
[1673229382895,0.02066834,17209.0,17208.0,1.46225]
[1673229383166,0.09666834,17209.0,17208.0,1.17125]
[1673229383423,0.2706199,17209.0,17208.0,0.590125]
[1673229384179,0.53154724,17209.0,17208.0,0.590125]
[1673229384950,0.79446879,17209.0,17208.0,0.009]
[1673229385178,0.9683619,17209.0,17208.0,0.009]
[1673229385428,1.01117148,17209.0,17208.0,0.009]
[1673229386221,0.66326837,17209.0,17208.0,0.009]
[1673229387228,1.44390581,17209.0,17208.0,0.009]
[1673229387734,2.02499681,17209.0,17208.0,0.009]
[1673229392277,2.78461466,17209.0,17208.0,0.00810001]
[1673229392525,3.26546112,17209.0,17208.0,0.00810001]
[1673229393025,3.30087781,17209.0,17208.0,0.00810001]
[1673229393542,2.71358407,17209.0,17208.0,0.00810001]
[1673229393812,2.89824513,17209.0,17208.0,0.00810001]
[1673229394043,2.86282844,17209.0,17208.0,0.00810001]
[1673229397317,2.67816738,17209.0,17208.0,0.00810001]
[1673229397632,2.86282844,17209.0,17208.0,0.00810001]
[1673229398565,2.38198198,17209.0,17208.0,0.00810001]
[1673229398814,2.71946741,17209.0,17208.0,0.00810001]
[1673229399569,2.13837641,17209.0,17208.0,0.00810001]
[1673229400871,2.71946741,17209.0,17208.0,0.00810001]
[1673229401117,3.20031387,17209.0,17208.0,0.00810001]
[1673229402633,2.61922287,17209.0,17208.0,0.00810001]
[1673229403386,2.27261109,17209.0,17208.0,0.00810001]
[1673229403626,2.61924944,17209.0,17208.0,0.00810001]
[1673229404859,2.50644944,17209.0,17208.0,0.00810001]
[1673229406368,2.02560298,17209.0,17208.0,0.00810001]
[1673229408114,2.50644944,17209.0,17208.0,0.00810001]
[1673229408865,3.08754044,17209.0,17208.0,0.00810001]
[1673229409114,3.08754044,17209.0,17208.0,0.00729001]
[1673229409115,2.84734937,17209.0,17208.0,0.00729001]
[1673229409663,2.67181466,17209.0,17208.0,0.00729001]
[1673229410183,2.08452092,17209.0,17208.0,0.00729001]
[1673229411169,0.3,17208.0,17204.0,1.06032761]
[1673229411430,0.3,17208.0,17204.0,0.88045679]
[1673229411431,0.43510695,17205.0,17204.0,0.88045679]
[1673229411912,0.43510695,17205.0,17204.0,0.57948115]
[1673229412441,0.43512945,17205.0,17204.0,0.58848115]
[1673229412687,0.78320383,17205.0,17203.0,0.88127]
[1673229412934,0.61614973,17205.0,17204.0,0.1]
[1673229413692,0.4351149,17205.0,17203.0,1.462546]
[1673229413932,0.17405543,17204.0,17203.0,0.890275]
[1673229414436,0.5191196,17205.0,17203.0,0.890275]
[1673229414681,0.5191196,17205.0,17203.0,1.471568]
[1673229414926,0.17405543,17204.0,17203.0,1.462568]
[1673229415171,0.4351196,17205.0,17203.0,1.462568]
[1673229415685,0.5191196,17205.0,17203.0,1.471568]
[1673229415941,0.18255543,17204.0,17202.0,0.58510021]
[1673229416191,0.5864196,17204.0,17202.0,0.00379421]
[1673229416473,0.17405543,17203.0,17202.0,0.00379421]
[1673229416705,0.4436196,17203.0,17202.0,0.00379421]
[1673229417189,0.4436196,17203.0,17202.0,0.00579421]
[1673229417947,0.61764973,17203.0,17202.0,0.00379421]
[1673229418196,0.62064973,17203.0,17202.0,0.04579421]
[1673229418943,1.00961973,17203.0,17202.0,0.04579421]
[1673229419427,0.70961973,17203.0,17202.0,0.04579421]
[1673229419686,1.29091273,17203.0,17202.0,0.04579421]
[1673229419933,0.62064973,17203.0,17202.0,0.04579421]
[1673229420461,0.62067767,17203.0,17202.0,0.04579421]
[1673229420713,1.15970645,17203.0,17202.0,0.04579421]
[1673229421225,1.35970645,17203.0,17202.0,0.04579421]
[1673229421950,1.15970645,17203.0,17202.0,0.04579421]
[1673229422731,1.50798141,17203.0,17202.0,0.04579421]
[1673229422966,0.92668841,17203.0,17202.0,0.04579421]
[1673229423247,0.83771841,17203.0,17202.0,0.04579421]
[1673229423532,0.92668841,17203.0,17202.0,0.04579421]
[1673229423763,0.92669183,17203.0,17202.0,0.04579421]
[1673229424275,0.53384296,17203.0,17202.0,0.2834721]
[1673229424525,0.44668489,17203.0,17202.0,0.04579421]
[1673229425027,0.185568,17203.0,17202.0,0.04579421]
[1673229425796,0.177068,17203.0,17202.0,0.62712121]
[1673229426073,0.003,17203.0,17202.0,0.92712121]
[1673229426316,0.003,17203.0,17202.0,1.09532121]
[1673229426602,0.003,17203.0,17202.0,2.04146121]
[1673229427353,0.003,17203.0,17202.0,2.69140767]
[1673229427916,0.003,17203.0,17202.0,2.21056121]
[1673229430235,0.003,17203.0,17202.0,2.79188821]
[1673229431546,0.003,17203.0,17202.0,2.79181622]
[1673229433393,0.003,17203.0,17202.0,2.79301404]
[1673229435826,0.003,17203.0,17202.0,2.79181622]
[1673229437280,0.177068,17203.0,17202.0,2.42700322]
[1673229437788,0.003,17203.0,17202.0,2.79181622]
[1673229440273,0.177068,17203.0,17202.0,2.79181622]
[1673229440525,0.177068,17203.0,17202.0,2.42700322]
[1673229442323,0.177068,17203.0,17202.0,2.79181622]
[1673229442843,0.003,17203.0,17202.0,1.04783522]
[1673229443083,0.003,17203.0,17202.0,2.79181622]
[1673229444325,0.177068,17203.0,17202.0,1.54567622]
[1673229444810,0.43818489,17203.0,17202.0,0.96434922]
[1673229445057,0.78645985,17203.0,17202.0,0.96434922]
[1673229445319,0.61239185,17203.0,17202.0,0.38302222]
[1673229446305,0.78638191,17203.0,17202.0,0.38302222]
[1673229446558,0.82925791,17203.0,17202.0,0.04572222]
[1673229447312,0.91822791,17203.0,17202.0,0.04572222]
[1673229447555,0.82925791,17203.0,17202.0,0.04572222]
[1673229448371,0.82925922,17203.0,17202.0,0.04572222]
[1673229448867,1.04776023,17203.0,17202.0,0.04572222]
[1673229449120,1.0477587,17203.0,17202.0,0.04572222]
[1673229449359,0.61265175,17203.0,17202.0,0.04572222]
[1673229449600,0.78638191,17203.0,17202.0,0.04572222]
[1673229450978,0.43863217,17203.0,17202.0,0.04572222]
[1673229451637,0.43863598,17203.0,17202.0,0.04572222]
[1673229452183,0.43863598,17203.0,17202.0,0.34572222]
[1673229452931,0.17725428,17203.0,17202.0,0.34572222]
[1673229453451,0.43863598,17203.0,17202.0,0.34572222]
[1673229453702,0.003,17203.0,17202.0,1.45538711]
[1673229453958,0.003,17203.0,17202.0,2.98074557]
[1673229454243,0.003,17203.0,17202.0,2.97956335]
[1673229454473,0.003,17203.0,17202.0,3.08147622]
[1673229455006,0.0028282,17203.0,17202.0,3.08147622]
[1673229455247,0.0028282,17203.0,17202.0,2.79081622]
[1673229455498,0.17708248,17203.0,17202.0,1.87318922]
[1673229456538,0.17708248,17203.0,17202.0,1.50837622]
[1673229456796,0.43846418,17203.0,17202.0,1.20837622]
[1673229457047,0.43846418,17203.0,17202.0,0.62704922]
[1673229457304,0.43846418,17203.0,17202.0,0.04572222]
[1673229457305,0.61248486,17203.0,17202.0,0.04572222]
[1673229457557,0.78621011,17203.0,17202.0,0.04572222]
[1673229457807,0.83759432,17203.0,17202.0,0.04572222]
[1673229458669,0.48931936,17203.0,17202.0,0.04572222]
[1673229459598,0.63550541,17203.0,17202.0,0.04572222]
[1673229460366,1.16014166,17203.0,17202.0,0.04572222]
[1673229460631,1.07117166,17203.0,17202.0,0.04572222]
[1673229461382,1.16014166,17203.0,17202.0,0.04572222]
[1673229461903,1.37387541,17203.0,17202.0,0.04572222]
[1673229462639,1.95516841,17203.0,17202.0,0.04572222]
[1673229462893,2.95764535,17203.0,17202.0,0.04572222]
[1673229463390,2.435517,17203.0,17202.0,0.04572222]
[1673229463643,2.95764535,17203.0,17202.0,0.04572222]
[1673229464449,2.65739451,17203.0,17202.0,0.04572222]
[1673229464701,1.65516841,17203.0,17202.0,0.04572222]
[1673229464996,1.85516841,17203.0,17202.0,0.04572222]
[1673229466492,2.09063134,17203.0,17202.0,0.04572222]
[1673229466498,1.65516841,17203.0,17202.0,0.04572222]
[1673229466742,1.95516841,17203.0,17202.0,0.04572222]
[1673229468231,1.65516841,17203.0,17202.0,0.04572222]
[1673229468475,2.09061015,17203.0,17202.0,0.04572222]
[1673229468720,1.65516841,17203.0,17202.0,0.04572222]
[1673229468980,1.95516841,17203.0,17202.0,0.04572222]
[1673229470513,1.65516841,17203.0,17202.0,0.04572222]
[1673229471522,2.47729676,17203.0,17202.0,0.04572222]
[1673229471771,2.95779411,17203.0,17202.0,0.04572222]
[1673229472767,2.43566576,17203.0,17202.0,0.04572222]
[1673229473533,1.95516841,17203.0,17202.0,0.04572222]
[1673229474032,1.65516841,17203.0,17202.0,0.04572222]
[1673229474765,2.12406841,17203.0,17202.0,0.04572222]
[1673229475011,3.12689346,17203.0,17202.0,0.04572222]
[1673229475995,1.82406841,17203.0,17202.0,0.04572222]
[1673229478254,1.82406841,17203.0,17202.0,0.03991618]
[1673229479518,2.25949643,17203.0,17202.0,0.03991618]
[1673229480489,2.02653612,17203.0,17202.0,0.03991618]
[1673229480988,1.67820343,17203.0,17202.0,0.03991618]
[1673229481753,2.12406841,17203.0,17202.0,0.03991618]
[1673229482522,1.82406841,17203.0,17202.0,0.03991618]
[1673229483515,1.24277541,17203.0,17202.0,0.03991618]
[1673229483771,1.44277541,17203.0,17202.0,0.03991618]
[1673229484013,2.02406841,17203.0,17202.0,0.03991618]
[1673229484259,1.82406841,17203.0,17202.0,0.03991618]
[1673229485258,2.34619676,17203.0,17202.0,0.03991618]
[1673229486511,1.24277541,17203.0,17202.0,0.03991618]
[1673229487024,1.82406841,17203.0,17202.0,0.03991618]
[1673229488034,2.34619676,17203.0,17202.0,0.03991618]
[1673229489057,1.18361076,17203.0,17202.0,0.03991618]
[1673229489566,1.76490376,17203.0,17202.0,0.03991618]
[1673229490097,1.82406841,17203.0,17202.0,0.03991618]
[1673229490579,2.34619676,17203.0,17202.0,0.03991618]
[1673229491082,2.43419676,17203.0,17202.0,0.04891618]
[1673229492157,3.01548976,17203.0,17202.0,0.04891618]
[1673229492917,2.92466156,17203.0,17201.0,0.00400048]
[1673229493175,1.25939341,17202.0,17201.0,0.00400048]
[1673229493423,2.72204741,17202.0,17201.0,0.00400048]
[1673229493945,3.30337441,17202.0,17201.0,0.00400048]
[1673229494224,3.87336895,17202.0,17201.0,0.00400048]
[1673229494481,0.90034,17201.0,17200.0,0.00332855]
[1673229494747,0.3,17200.0,17199.0,0.00609161]
[1673229495011,3.01245043,17200.0,17199.0,0.00609161]
[1673229495276,3.13464063,17200.0,17199.0,0.00609161]
[1673229496049,3.22264063,17200.0,17199.0,0.01509161]
[1673229496692,3.58382633,17200.0,17199.0,0.01509161]
[1673229496870,3.38050964,17200.0,17199.0,0.01509161]
[1673229497647,3.29250964,17200.0,17199.0,0.00609161]
[1673229497904,3.29250964,17200.0,17199.0,0.01509161]
[1673229498164,3.38050964,17200.0,17199.0,0.01509161]
[1673229498928,3.38014449,17200.0,17199.0,0.01509161]
[1673229499177,3.18438759,17200.0,17199.0,0.01509161]
[1673229499670,3.5476476,17200.0,17199.0,0.01509161]
[1673229500187,1.73204421,17200.0,17199.0,0.01509161]
[1673229500461,1.00425814,17200.0,17199.0,0.01509161]
[1673229500687,1.35225404,17200.0,17199.0,0.01509161]
[1673229500944,1.35225604,17200.0,17199.0,0.01509161]
[1673229501207,1.35224852,17200.0,17199.0,0.01509161]
[1673229501743,1.36074852,17200.0,17199.0,0.01509161]
[1673229501983,1.01275814,17200.0,17199.0,0.01509161]
[1673229502518,0.57775421,17200.0,17199.0,0.01509161]
[1673229503049,1.15914921,17200.0,17199.0,0.01509161]
[1673229503280,1.74054421,17200.0,17199.0,0.01509161]
[1673229503534,1.90964421,17200.0,17199.0,0.01509161]
[1673229503810,2.39049067,17200.0,17199.0,0.01509161]
[1673229504064,2.9125476,17200.0,17199.0,0.01509161]
[1673229505347,2.9125476,17200.0,17199.0,0.01358245]
[1673229505348,3.69845929,17200.0,17199.0,0.01358245]
[1673229505657,3.93306212,17200.0,17199.0,0.01358245]
[1673229505918,4.09077824,17200.0,17199.0,0.01358245]
[1673229507178,3.50321848,17200.0,17199.0,0.01358245]
[1673229507432,4.02487853,17200.0,17199.0,0.01358245]
[1673229507713,4.02557269,17200.0,17199.0,0.01358245]
[1673229507943,3.86716241,17200.0,17199.0,0.01358245]
[1673229508222,3.50391332,17200.0,17199.0,0.01358245]
[1673229508706,4.09147308,17200.0,17199.0,0.01358245]
[1673229508955,3.50391332,17200.0,17199.0,0.01358245]
[1673229510774,3.78010641,17200.0,17199.0,0.01358245]
[1673229511029,3.86702722,17200.0,17199.0,0.01358245]
[1673229511808,3.83161053,17200.0,17199.0,0.01358245]
[1673229512581,3.98992741,17200.0,17199.0,0.01358245]
[1673229512846,3.83161053,17200.0,17199.0,0.01358245]
[1673229513836,3.98991663,17200.0,17199.0,0.01358245]
[1673229514101,3.46839345,17200.0,17199.0,0.01358245]